[Event "Pervenstvo PFO 2023_Y19_Rapid"]
[Site "Samara region, Russia"]
[Date "2023.11.11"]
[Round "6.6"]
[White "Kurulev, Egor"]
[Black "Sadykov, Ilgiz A."]
[Result "0-1"]
[TimeControl "10:5"]
[WhiteFideId "34187097"]
[BlackFideId "34286217"]
[WhiteElo "1332"]
[BlackElo "1675"]

1. e4 {[%clk 00:10:08]} {[%emt 00:00:01]} c6 {[%clk 00:10:09]} {[%emt
00:00:01]} 2. Nf3 {[%clk 00:10:12]} {[%emt 00:00:02]} d5 {[%clk 00:10:13]} 3.
Nc3 {[%clk 00:10:16]} Bg4 {[%clk 00:10:17]} 4. h3 {[%clk 00:10:20]} {[%emt
00:00:01]} Bxf3 {[%clk 00:10:21]} {[%emt 00:00:02]} 5. Qxf3 {[%clk 00:10:19]}
{[%emt 00:00:06]} e6 {[%clk 00:10:25]} {[%emt 00:00:01]} 6. d4 {[%clk
00:10:20]} {[%emt 00:00:04]} Nf6 {[%clk 00:10:27]} {[%emt 00:00:02]} 7. Bg5
{[%clk 00:10:14]} {[%emt 00:00:11]} Be7 {[%clk 00:10:31]} {[%emt 00:00:02]} 8.
e5 {[%clk 00:10:07]} {[%emt 00:00:12]} Nfd7 {[%clk 00:10:35]} 9. Bxe7 {[%clk
00:10:10]} {[%emt 00:00:02]} Qxe7 {[%clk 00:10:39]} 10. Bd3 {[%clk 00:10:02]}
{[%emt 00:00:14]} O-O {[%clk 00:10:38]} {[%emt 00:00:05]} 11. O-O {[%clk
00:09:51]} {[%emt 00:00:16]} c5 {[%clk 00:10:37]} {[%emt 00:00:06]} 12. Rfe1
{[%clk 00:09:42]} {[%emt 00:00:14]} cxd4 {[%clk 00:10:36]} {[%emt 00:00:06]} 13.
Nb5 {[%clk 00:09:41]} {[%emt 00:00:06]} Nc6 {[%clk 00:10:39]} {[%emt 00:00:02]}
14. Qf4 {[%clk 00:09:26]} {[%emt 00:00:21]} f6 {[%clk 00:09:18]} {[%emt
00:01:26]} 15. Nxd4 {[%clk 00:08:58]} {[%emt 00:00:33]} Nxd4 {[%clk 00:09:16]}
{[%emt 00:00:06]} 16. Qxd4 {[%clk 00:09:00]} {[%emt 00:00:03]} fxe5 {[%clk
00:09:19]} {[%emt 00:00:02]} 17. Qg4 {[%clk 00:08:16]} {[%emt 00:00:49]} e4
{[%clk 00:09:14]} {[%emt 00:00:10]} 18. Bb5 {[%clk 00:08:06]} {[%emt 00:00:16]}
Ne5 {[%clk 00:08:56]} {[%emt 00:00:23]} 19. Qg3 {[%clk 00:08:05]} {[%emt
00:00:05]} Rf5 {[%clk 00:08:46]} {[%emt 00:00:15]} 20. f4 {[%clk 00:06:44]}
{[%emt 00:01:26]} Ng6 {[%clk 00:08:34]} {[%emt 00:00:18]} 21. Be2 {[%clk
00:06:16]} {[%emt 00:00:33]} Raf8 {[%clk 00:08:12]} {[%emt 00:00:26]} 22. Rf1
{[%clk 00:05:53]} {[%emt 00:00:29]} Nxf4 {[%clk 00:08:12]} {[%emt 00:00:05]} 23.
Bg4 {[%clk 00:05:51]} {[%emt 00:00:07]} R5f6 {[%clk 00:08:16]} 24. Qe3 {[%clk
00:05:23]} {[%emt 00:00:32]} h5 {[%clk 00:07:59]} {[%emt 00:00:21]} 25. Be2
{[%clk 00:05:18]} {[%emt 00:00:11]} e5 {[%clk 00:07:52]} {[%emt 00:00:13]} 26.
c4 {[%clk 00:05:19]} {[%emt 00:00:04]} Rg6 {[%clk 00:07:45]} {[%emt 00:00:11]}
27. g4 {[%clk 00:04:57]} {[%emt 00:00:28]} d4 {[%clk 00:07:34]} {[%emt
00:00:16]} 28. Qxe4 {[%clk 00:04:55]} {[%emt 00:00:07]} Rgf6 {[%clk 00:05:58]}
{[%emt 00:01:41]} 29. Kh2 {[%clk 00:04:15]} {[%emt 00:00:45]} Qd6 {[%clk
00:04:53]} {[%emt 00:01:10]} 30. Bf3 {[%clk 00:03:38]} {[%emt 00:00:42]} Ne6
{[%clk 00:04:32]} {[%emt 00:00:25]} 31. gxh5 {[%clk 00:03:12]} {[%emt
00:00:31]} Kh8 {[%clk 00:04:17]} {[%emt 00:00:20]} 32. Bg2 {[%clk 00:02:56]}
{[%emt 00:00:21]} Ng5 {[%clk 00:03:37]} {[%emt 00:00:34]} 33. Qg4 {[%clk
00:02:22]} {[%emt 00:00:50]} e4+ {[%clk 00:03:28]} {[%emt 00:00:15]} 34. Kh1
{[%clk 00:02:26]} Qe5 {[%clk 00:03:26]} {[%emt 00:00:07]} 35. Rae1 {[%clk
00:02:10]} {[%emt 00:00:22]} Rf4 {[%clk 00:03:20]} {[%emt 00:00:09]} 36. Rxf4
{[%clk 00:01:52]} {[%emt 00:00:24]} Rxf4 {[%clk 00:03:20]} {[%emt 00:00:05]} 37.
Qd7 {[%clk 00:01:36]} {[%emt 00:00:21]} Rf2 {[%clk 00:02:42]} {[%emt 00:00:42]}
38. Qxb7 {[%clk 00:01:18]} {[%emt 00:00:24]} e3 {[%clk 00:01:59]} {[%emt
00:00:47]} 39. h4 {[%clk 00:01:05]} {[%emt 00:00:18]} Ne6 {[%clk 00:01:34]}
{[%emt 00:00:29]} 40. Qa8+ {[%clk 00:00:50]} {[%emt 00:00:21]} Rf8 {[%clk
00:01:25]} {[%emt 00:00:14]} 41. Qe4 {[%clk 00:00:42]} {[%emt 00:00:14]} Qg3
{[%clk 00:01:10]} {[%emt 00:00:18]} 42. Rg1 {[%clk 00:00:46]} {[%emt 00:00:03]}
Rf4 {[%clk 00:01:00]} {[%emt 00:00:14]} 43. Qa8+ {[%clk 00:00:45]} {[%emt
00:00:07]} Nf8 {[%clk 00:01:04]} 44. Rd1 {[%clk 00:00:14]} {[%emt 00:00:36]}
Rxh4+ {[%clk 00:01:06]} {[%emt 00:00:03]} 45. Kg1 {[%clk 00:00:15]} {[%emt
00:00:05]} Qf2# 0-1

[Event "Pervenstvo PFO 2023_Y19_Rapid"]
[Site "Samara region, Russia"]
[Date "2023.11.11"]
[Round "6.7"]
[White "Berezin, Zachar"]
[Black "Kononenko, Nikita"]
[Result "1-0"]
[TimeControl "10:5"]
[WhiteFideId "44139322"]
[BlackFideId "54175682"]
[WhiteElo "1658"]
[BlackElo "1774"]

1. d4 {[%clk 00:10:09]} Nf6 {[%clk 00:10:09]} {[%emt 00:00:02]} 2. Nf3 {[%clk
00:10:13]} d5 {[%clk 00:10:13]} {[%emt 00:00:01]} 3. Bg5 {[%clk 00:10:16]} Ne4
{[%clk 00:10:00]} {[%emt 00:00:17]} 4. Bf4 {[%clk 00:10:21]} {[%emt 00:00:01]}
g6 {[%clk 00:09:41]} {[%emt 00:00:24]} 5. Nbd2 {[%clk 00:10:23]} {[%emt
00:00:02]} Bg7 {[%clk 00:09:42]} {[%emt 00:00:04]} 6. e3 {[%clk 00:10:27]}
{[%emt 00:00:02]} Nxd2 {[%clk 00:09:35]} {[%emt 00:00:12]} 7. Qxd2 {[%clk
00:10:30]} {[%emt 00:00:02]} O-O {[%clk 00:09:37]} {[%emt 00:00:02]} 8. Bd3
{[%clk 00:10:15]} {[%emt 00:00:21]} c5 {[%clk 00:09:41]} {[%emt 00:00:02]} 9.
c3 {[%clk 00:10:19]} {[%emt 00:00:01]} Nc6 {[%clk 00:09:41]} {[%emt 00:00:04]}
10. O-O {[%clk 00:10:22]} {[%emt 00:00:02]} Re8 {[%clk 00:09:41]} {[%emt
00:00:04]} 11. Ne5 {[%clk 00:09:59]} {[%emt 00:00:28]} f6 {[%clk 00:09:30]}
{[%emt 00:00:15]} 12. Nxc6 {[%clk 00:08:13]} {[%emt 00:01:51]} bxc6 {[%clk
00:09:33]} {[%emt 00:00:03]} 13. Bg3 {[%clk 00:05:54]} {[%emt 00:02:24]} e5
{[%clk 00:09:30]} {[%emt 00:00:07]} 14. dxc5 {[%clk 00:05:52]} {[%emt
00:00:09]} a5 {[%clk 00:06:50]} {[%emt 00:02:44]} 15. a4 {[%clk 00:04:09]}
{[%emt 00:01:48]} Qe7 {[%clk 00:05:16]} {[%emt 00:01:39]} 16. b4 {[%clk
00:04:02]} {[%emt 00:00:12]} f5 {[%clk 00:05:04]} {[%emt 00:00:18]} 17. Ra2
{[%clk 00:03:27]} {[%emt 00:00:40]} g5 {[%clk 00:04:40]} {[%emt 00:00:28]} 18.
f3 {[%clk 00:02:37]} {[%emt 00:00:56]} Be6 {[%clk 00:04:22]} {[%emt 00:00:22]}
19. Ra3 {[%clk 00:02:39]} {[%emt 00:00:03]} Ra7 {[%clk 00:03:36]} {[%emt
00:00:52]} 20. e4 {[%clk 00:02:20]} {[%emt 00:00:23]} f4 {[%clk 00:02:22]}
{[%emt 00:01:18]} 21. Bf2 {[%clk 00:02:23]} {[%emt 00:00:02]} d4 {[%clk
00:02:27]} {[%emt 00:00:05]} 22. cxd4 {[%clk 00:02:25]} {[%emt 00:00:09]} exd4
{[%clk 00:02:31]} {[%emt 00:00:01]} 23. Rc1 {[%clk 00:01:54]} {[%emt 00:00:36]}
Rc8 {[%clk 00:01:24]} {[%emt 00:01:12]} 24. Bc4 {[%clk 00:01:34]} {[%emt
00:00:25]} axb4 {[%clk 00:00:34]} {[%emt 00:00:55]} 25. Qxb4 {[%clk 00:01:38]}
{[%emt 00:00:01]} Rd8 {[%clk 00:00:10]} {[%emt 00:00:29]} 26. Rd3 {[%clk
00:01:14]} {[%emt 00:00:29]} Rda8 {[%clk 00:00:06]} {[%emt 00:00:09]} 27. Ra1
{[%clk 00:00:50]} {[%emt 00:00:29]} Bxc4 28. Qxc4+ Qf7 29. Qc2 {[%clk
00:00:39]} {[%emt 00:00:19]} Qd7 {[%clk 00:00:09]} {[%emt 00:00:09]} 30. Kf1
{[%clk 00:00:29]} {[%emt 00:00:15]} Kh8 {[%clk 00:00:10]} {[%emt 00:00:04]} 31.
Qd2 {[%clk 00:00:31]} {[%emt 00:00:07]} Rxa4 {[%clk 00:00:18]} {[%emt
00:00:03]} 32. Rxa4 {[%emt 00:00:16]} Rxa4 33. Qc2 {[%clk 00:00:24]} Ra1+
{[%clk 00:00:20]} {[%emt 00:00:08]} 34. Rd1 {[%clk 00:00:20]} {[%emt 00:00:09]}
Qa7 {[%clk 00:00:15]} {[%emt 00:00:10]} 35. Rxa1 {[%clk 00:00:14]} {[%emt
00:00:11]} Qxa1+ {[%clk 00:00:19]} 36. Ke2 {[%clk 00:00:18]} Qa6+ {[%clk
00:00:19]} {[%emt 00:00:05]} 37. Qd3 {[%clk 00:00:21]} {[%emt 00:00:02]} Qa2+
{[%clk 00:00:22]} {[%emt 00:00:02]} 38. Kf1 {[%clk 00:00:19]} {[%emt 00:00:07]}
Qa4 {[%clk 00:00:23]} {[%emt 00:00:04]} 39. Ke2 {[%clk 00:00:15]} {[%emt
00:00:09]} Bf6 {[%clk 00:00:24]} {[%emt 00:00:03]} 40. Kf1 {[%clk 00:00:19]}
{[%emt 00:00:02]} Kg7 {[%clk 00:00:27]} {[%emt 00:00:01]} 41. Ke2 {[%clk
00:00:24]} Kf7 {[%clk 00:00:20]} {[%emt 00:00:14]} 42. h3 {[%clk 00:00:22]}
{[%emt 00:00:06]} Ke6 {[%clk 00:00:20]} {[%emt 00:00:05]} 43. Kf1 {[%clk
00:00:25]} {[%emt 00:00:03]} Be5 {[%clk 00:00:20]} {[%emt 00:00:05]} 44. Ke2
{[%clk 00:00:25]} {[%emt 00:00:05]} Kd7 {[%clk 00:00:17]} {[%emt 00:00:07]} 45.
Kf1 {[%clk 00:00:27]} {[%emt 00:00:03]} Qb5 {[%clk 00:00:15]} {[%emt 00:00:08]}
46. Ke2 {[%clk 00:00:18]} {[%emt 00:00:14]} Qxc5 {[%clk 00:00:18]} {[%emt
00:00:02]} 47. Qb1 {[%clk 00:00:15]} {[%emt 00:00:08]} Qc4+ {[%clk 00:00:15]}
{[%emt 00:00:08]} 48. Ke1 {[%clk 00:00:18]} {[%emt 00:00:02]} Qc3+ {[%clk
00:00:06]} {[%emt 00:00:14]} 49. Kf1 {[%clk 00:00:21]} {[%emt 00:00:01]} d3
{[%clk 00:00:10]} {[%emt 00:00:02]} 50. Qb7+ {[%clk 00:00:17]} {[%emt
00:00:10]} Ke6 {[%clk 00:00:09]} {[%emt 00:00:05]} 51. Qc8+ {[%clk 00:00:20]}
{[%emt 00:00:02]} Kf7 {[%clk 00:00:11]} {[%emt 00:00:02]} 52. Qd7+ {[%clk
00:00:23]} {[%emt 00:00:02]} Kg6 {[%clk 00:00:15]} {[%emt 00:00:02]} 53. Qf5+
{[%clk 00:00:27]} {[%emt 00:00:01]} Kh6 {[%clk 00:00:16]} {[%emt 00:00:03]} 54.
h4 {[%clk 00:00:18]} {[%emt 00:00:15]} Qa1+ {[%clk 00:00:19]} {[%emt 00:00:02]}
55. Be1 {[%clk 00:00:20]} {[%emt 00:00:03]} gxh4 {[%clk 00:00:21]} {[%emt
00:00:03]} 56. Qf8+ {[%clk 00:00:20]} {[%emt 00:00:05]} Kg6 {[%clk 00:00:20]}
{[%emt 00:00:06]} 57. Qf5+ {[%clk 00:00:24]} {[%emt 00:00:01]} Kg7 {[%clk
00:00:23]} {[%emt 00:00:01]} 58. Qd7+ {[%clk 00:00:29]} {[%emt 00:00:02]} Kf8
{[%clk 00:00:25]} {[%emt 00:00:02]} 59. Qd8+ {[%clk 00:00:26]} {[%emt
00:00:08]} Kf7 {[%clk 00:00:27]} {[%emt 00:00:02]} 60. Qd7+ {[%clk 00:00:31]}
{[%emt 00:00:01]} Kg6 {[%clk 00:00:28]} {[%emt 00:00:04]} 61. Qf5+ {[%clk
00:00:35]} {[%emt 00:00:02]} Kh6 {[%clk 00:00:30]} {[%emt 00:00:02]} 62. Qf8+
{[%clk 00:00:38]} {[%emt 00:00:02]} Bg7 {[%clk 00:00:32]} {[%emt 00:00:03]} 63.
Qxf4+ {[%clk 00:00:42]} {[%emt 00:00:01]} Kg6 {[%clk 00:00:36]} {[%emt
00:00:01]} 64. Qf5+ {[%clk 00:00:47]} {[%emt 00:00:02]} Kh6 {[%clk 00:00:39]}
{[%emt 00:00:01]} 65. f4 {[%clk 00:00:46]} {[%emt 00:00:06]} Qf6 {[%clk
00:00:26]} {[%emt 00:00:18]} 66. Qg4 {[%clk 00:00:37]} {[%emt 00:00:14]} c5
{[%clk 00:00:20]} {[%emt 00:00:11]} 67. f5 {[%clk 00:00:38]} {[%emt 00:00:04]}
Qg5 {[%emt 00:00:10]} 68. Bd2 Qxd2 {[%clk 00:00:19]} {[%emt 00:00:01]} 69.
Qxh4# {[%emt 00:00:03]} 1-0

[Event "Pervenstvo PFO 2023_Y19_Rapid"]
[Site "Samara region, Russia"]
[Date "2023.11.11"]
[Round "6.8"]
[White "Evtukhov, Lev"]
[Black "Gimazetdinov, Amir"]
[Result "1/2-1/2"]
[TimeControl "10:5"]
[WhiteFideId "44173210"]
[BlackFideId "54142440"]
[WhiteElo "1923"]
[BlackElo "1749"]

1. d4 {[%emt 00:56:26]} d5 {[%emt 00:00:02]} 2. c4 {[%emt 00:00:02]} dxc4
{[%emt 00:00:02]} 3. e3 {[%emt 00:00:14]} Nf6 {[%emt 00:00:02]} 4. Bxc4 {[%emt
00:00:03]} e6 5. Nf3 {[%emt 00:00:04]} c5 {[%emt 00:00:02]} 6. O-O {[%emt
00:00:13]} a6 {[%emt 00:00:02]} 7. a4 {[%emt 00:00:16]} Nc6 {[%emt 00:00:02]} 8.
Nc3 {[%emt 00:00:09]} b6 {[%emt 00:00:02]} 9. b3 {[%emt 00:00:55]} Bb7 {[%emt
00:00:01]} 10. Bb2 {[%emt 00:00:01]} cxd4 {[%emt 00:00:02]} 11. exd4 {[%emt
00:00:08]} Nb4 {[%emt 00:00:15]} 12. Rc1 {[%emt 00:00:30]} Be7 {[%emt
00:00:04]} 13. Re1 {[%emt 00:00:12]} O-O {[%emt 00:00:16]} 14. Ne5 {[%emt
00:00:31]} Nbd5 {[%emt 00:00:02]} 15. Nxd5 {[%emt 00:00:41]} Nxd5 {[%emt
00:00:02]} 16. Qg4 {[%emt 00:00:09]} Bf6 {[%emt 00:01:01]} 17. Rcd1 {[%emt
00:00:59]} g6 {[%emt 00:01:23]} 18. g3 {[%emt 00:02:20]} Bg7 {[%emt 00:00:11]}
19. h4 {[%emt 00:00:23]} h5 {[%emt 00:00:03]} 20. Qh3 {[%emt 00:00:39]} Qd6
{[%emt 00:01:21]} 21. Qf1 {[%emt 00:00:40]} Rfd8 {[%emt 00:00:30]} 22. Qe2
{[%emt 00:00:30]} a5 {[%emt 00:00:41]} 23. Bb5 {[%emt 00:00:46]} Rac8 {[%emt
00:00:02]} 24. Nc4 {[%emt 00:00:08]} Qe7 {[%emt 00:00:22]} 25. Qd2 {[%emt
00:00:56]} Qf6 {[%emt 00:00:20]} 26. Ne5 {[%emt 00:00:13]} Qf5 {[%emt
00:00:28]} 27. Bd3 {[%emt 00:00:04]} Qf6 {[%emt 00:00:26]} 28. Rc1 {[%emt
00:00:06]} Kh7 {[%emt 00:00:40]} 29. Qg5 {[%emt 00:00:18]} Qxg5 {[%emt
00:00:06]} 30. hxg5 {[%emt 00:00:03]} Bxe5 {[%emt 00:00:37]} 31. Rxe5 {[%emt
00:00:05]} Rxc1+ {[%emt 00:00:13]} 32. Bxc1 {[%emt 00:00:01]} Nb4 33. Be2
{[%emt 00:00:11]} Bd5 {[%emt 00:00:20]} 34. Re3 {[%emt 00:00:05]} Rc8 {[%emt
00:00:23]} 35. Bd2 {[%emt 00:00:06]} Nc2 {[%emt 00:00:47]} 36. Rc3 {[%emt
00:00:02]} Rxc3 {[%emt 00:00:04]} 37. Bxc3 {[%emt 00:00:01]} Bxb3 {[%emt
00:00:05]} 38. Bb5 {[%emt 00:00:02]} Na3 {[%emt 00:00:13]} 39. Be8 {[%emt
00:00:06]} Kg7 {[%emt 00:00:02]} 40. Bd2 {[%emt 00:00:09]} Bd5 {[%emt
00:00:07]} 41. Bc1 {[%emt 00:00:07]} Nc4 42. Bf4 {[%emt 00:00:02]} Kf8 {[%emt
00:00:43]} 43. Bb5 {[%emt 00:00:02]} Ke7 {[%emt 00:00:02]} 44. Bc7 {[%emt
00:00:44]} Kd8 45. Bxd8 1/2-1/2

[Event "Pervenstvo PFO 2023_Y19_Rapid"]
[Site "Samara region, Russia"]
[Date "2023.11.11"]
[Round "6.9"]
[White "Panteleev, Zakhar"]
[Black "Pukhov, Ivan"]
[Result "0-1"]
[TimeControl "10:5"]
[WhiteFideId "34483977"]
[BlackFideId "34301895"]
[WhiteElo "1556"]
[BlackElo "1955"]

1. Nf3 {[%clk 00:10:09]} {[%emt 00:00:53]} Nf6 {[%clk 00:10:08]} {[%emt
00:00:03]} 2. e3 {[%clk 00:10:13]} g6 {[%clk 00:10:10]} {[%emt 00:00:03]} 3. b3
{[%clk 00:10:13]} {[%emt 00:00:05]} Bg7 {[%clk 00:10:10]} {[%emt 00:00:05]} 4.
Bb2 {[%clk 00:10:16]} {[%emt 00:00:02]} O-O {[%clk 00:10:09]} {[%emt 00:00:05]}
5. Be2 {[%clk 00:10:19]} {[%emt 00:00:03]} c5 {[%clk 00:10:13]} 6. O-O {[%clk
00:10:16]} {[%emt 00:00:07]} d5 {[%clk 00:10:06]} {[%emt 00:00:13]} 7. d4
{[%clk 00:10:14]} {[%emt 00:00:07]} cxd4 {[%clk 00:09:58]} {[%emt 00:00:13]} 8.
Nxd4 {[%clk 00:10:03]} {[%emt 00:00:15]} Nc6 {[%clk 00:08:59]} {[%emt
00:01:04]} 9. Nxc6 {[%clk 00:09:47]} {[%emt 00:00:21]} bxc6 {[%clk 00:09:02]}
{[%emt 00:00:02]} 10. Nd2 {[%clk 00:09:43]} {[%emt 00:00:09]} Qd6 {[%clk
00:04:12]} {[%emt 00:04:56]} 11. c4 {[%clk 00:09:27]} {[%emt 00:00:21]} Ng4
{[%clk 00:03:47]} {[%emt 00:00:30]} 12. Bxg4 {[%clk 00:09:28]} {[%emt
00:00:03]} Bxb2 {[%clk 00:03:50]} {[%emt 00:00:02]} 13. Rb1 {[%clk 00:09:23]}
{[%emt 00:00:11]} Be5 {[%clk 00:03:45]} {[%emt 00:00:08]} 14. h3 {[%clk
00:09:14]} {[%emt 00:00:15]} Bg7 {[%clk 00:03:35]} {[%emt 00:00:15]} 15. Bf3
{[%clk 00:08:36]} {[%emt 00:00:43]} Bb7 {[%clk 00:02:41]} {[%emt 00:01:00]} 16.
Qc2 {[%clk 00:06:44]} {[%emt 00:01:56]} Rac8 {[%clk 00:02:19]} {[%emt
00:00:28]} 17. Rfd1 {[%clk 00:06:13]} {[%emt 00:00:35]} e6 {[%clk 00:02:22]}
{[%emt 00:00:03]} 18. b4 {[%clk 00:05:14]} {[%emt 00:01:05]} Qe7 {[%clk
00:02:18]} {[%emt 00:00:08]} 19. a3 {[%clk 00:04:48]} {[%emt 00:00:31]} Be5
{[%clk 00:01:54]} {[%emt 00:00:29]} 20. Nb3 {[%clk 00:04:36]} {[%emt 00:00:16]}
Bb8 {[%clk 00:01:31]} {[%emt 00:00:27]} 21. Nc5 {[%clk 00:04:04]} {[%emt
00:00:38]} Ba8 {[%clk 00:01:34]} {[%emt 00:00:02]} 22. Qe2 {[%clk 00:03:20]}
{[%emt 00:00:49]} Bd6 {[%clk 00:01:05]} {[%emt 00:00:35]} 23. Nb3 {[%clk
00:03:14]} {[%emt 00:00:11]} Bc7 {[%clk 00:00:59]} {[%emt 00:00:11]} 24. e4
{[%clk 00:02:59]} {[%emt 00:00:20]} Qd6 {[%clk 00:00:39]} {[%emt 00:00:25]} 25.
g3 {[%clk 00:02:48]} {[%emt 00:00:16]} Rfe8 {[%clk 00:00:42]} {[%emt 00:00:03]}
26. Rbc1 {[%clk 00:02:19]} {[%emt 00:00:33]} h5 {[%clk 00:00:42]} {[%emt
00:00:04]} 27. c5 {[%clk 00:00:58]} {[%emt 00:01:27]} Qd8 {[%clk 00:00:32]}
{[%emt 00:00:15]} 28. e5 {[%clk 00:00:32]} {[%emt 00:00:31]} Qg5 {[%clk
00:00:26]} {[%emt 00:00:11]} 29. Re1 {[%clk 00:00:26]} {[%emt 00:00:11]} h4
{[%clk 00:00:30]} {[%emt 00:00:01]} 30. g4 {[%clk 00:00:09]} {[%emt 00:00:21]}
f6 {[%clk 00:00:30]} {[%emt 00:00:05]} 31. exf6 {[%clk 00:00:08]} {[%emt
00:00:06]} Qxf6 {[%clk 00:00:34]} {[%emt 00:00:02]} 32. Bg2 {[%clk 00:00:09]}
{[%emt 00:00:03]} Rcd8 {[%clk 00:00:25]} {[%emt 00:00:15]} 33. Qd3 {[%clk
00:00:09]} {[%emt 00:00:05]} e5 {[%clk 00:00:22]} {[%emt 00:00:09]} 34. Rcd1
{[%clk 00:00:08]} {[%emt 00:00:06]} e4 {[%clk 00:00:24]} {[%emt 00:00:02]} 35.
Qd4 {[%clk 00:00:11]} {[%emt 00:00:01]} Be5 {[%clk 00:00:28]} 36. Qd2 {[%clk
00:00:16]} Bc3 {[%emt 00:00:04]} 37. Qh6 {[%clk 00:00:12]} {[%emt 00:00:07]}
Bxe1 {[%clk 00:00:32]} {[%emt 00:00:04]} 38. Rxe1 {[%clk 00:00:17]} Rf8 {[%clk
00:00:36]} {[%emt 00:00:01]} 39. Re2 {[%clk 00:00:13]} {[%emt 00:00:09]} Bb7
{[%clk 00:00:41]} 40. g5 {[%clk 00:00:13]} {[%emt 00:00:05]} Qg7 {[%clk
00:00:33]} {[%emt 00:00:12]} 41. Qxh4 {[%clk 00:00:16]} {[%emt 00:00:02]} Ba6
{[%clk 00:00:36]} {[%emt 00:00:03]} 42. Rd2 {[%clk 00:00:18]} {[%emt 00:00:03]}
Bd3 {[%clk 00:00:18]} {[%emt 00:00:22]} 43. Nc1 {[%clk 00:00:12]} {[%emt
00:00:11]} Bc4 {[%clk 00:00:22]} 44. Ne2 {[%clk 00:00:15]} {[%emt 00:00:02]}
Bxe2 {[%clk 00:00:23]} {[%emt 00:00:04]} 45. Rxe2 {[%clk 00:00:19]} Qa1+ {[%clk
00:00:19]} {[%emt 00:00:08]} 46. Kh2 {[%clk 00:00:22]} {[%emt 00:00:03]} Qe5+
{[%clk 00:00:23]} {[%emt 00:00:01]} 47. Kg1 {[%clk 00:00:25]} {[%emt 00:00:02]}
Rd7 {[%clk 00:00:25]} {[%emt 00:00:04]} 48. Qg4 {[%clk 00:00:24]} {[%emt
00:00:06]} Rdf7 {[%clk 00:00:28]} 49. h4 {[%clk 00:00:19]} {[%emt 00:00:10]}
Rf4 {[%clk 00:00:23]} {[%emt 00:00:10]} 50. Qd7 {[%clk 00:00:12]} {[%emt
00:00:12]} Rxh4 {[%clk 00:00:12]} {[%emt 00:00:16]} 51. Qxc6 {[%clk 00:00:16]}
{[%emt 00:00:02]} Qxg5 {[%clk 00:00:07]} {[%emt 00:00:09]} 52. Qe6+ {[%clk
00:00:14]} {[%emt 00:00:07]} Kg7 {[%clk 00:00:09]} {[%emt 00:00:03]} 53. Re3
{[%clk 00:00:17]} {[%emt 00:00:02]} Rg4 {[%clk 00:00:12]} {[%emt 00:00:03]} 54.
Rg3 {[%clk 00:00:12]} {[%emt 00:00:09]} Rxg3 {[%clk 00:00:15]} {[%emt
00:00:02]} 55. fxg3 {[%clk 00:00:16]} {[%emt 00:00:01]} Qc1+ {[%clk 00:00:17]}
{[%emt 00:00:03]} 56. Kh2 {[%clk 00:00:19]} {[%emt 00:00:02]} Rh8+ {[%clk
00:00:19]} {[%emt 00:00:02]} 57. Bh3 {[%clk 00:00:22]} {[%emt 00:00:03]} Qd2+
{[%clk 00:00:17]} {[%emt 00:00:06]} 58. Kg1 {[%clk 00:00:24]} {[%emt 00:00:03]}
Qe3+ {[%clk 00:00:20]} {[%emt 00:00:03]} 59. Kg2 {[%clk 00:00:21]} {[%emt
00:00:08]} Qf3+ {[%clk 00:00:20]} {[%emt 00:00:04]} 60. Kh2 {[%clk 00:00:22]}
{[%emt 00:00:04]} Qf2+ {[%clk 00:00:19]} {[%emt 00:00:06]} 61. Kh1 {[%clk
00:00:26]} {[%emt 00:00:02]} Qxg3 {[%clk 00:00:11]} {[%emt 00:00:13]} 0-1